bitfinex-derivatives/quotes_SOLF0:USTF0_20250719
["timestamp","ask_amount","ask_price","bid_price","bid_amount"]
[1752917115139,0.98765432,176.29,176.18,3.13]
[1752917115334,3.3,176.2,176.18,3.13]
[1752917115540,3.3,176.2,176.19,8.8021]
[1752917116750,1.42844083,176.22,176.21,5.6715]
[1752917117046,1.42844083,176.22,176.21,8.8015]
[1752917117341,4.72844083,176.22,176.21,5.6715]
[1752917118446,3.3,176.22,176.21,8.8015]
[1752917120940,4.72844083,176.23,176.22,8.8012]
[1752917121247,3.3,176.23,176.22,8.8012]
[1752917122052,4.72844083,176.23,176.22,8.8012]
[1752917122246,4.72844083,176.23,176.22,5.6712]
[1752917123353,4.72844083,176.23,176.22,8.8012]
[1752917123754,4.72844083,176.23,176.22,5.6712]
[1752917125057,3.3,176.23,176.22,5.6712]
[1752917125750,3.3,176.23,176.22,8.8012]
[1752917125951,3.3,176.23,176.22,5.6712]
[1752917126551,3.3,176.23,176.22,8.8012]
[1752917126858,4.72844083,176.23,176.22,8.8012]
[1752917128358,3.3,176.23,176.22,8.8012]
[1752917130558,4.72844083,176.24,176.23,8.8008]
[1752917130859,3.3,176.25,176.24,3.13]
[1752917131057,3.3,176.27,176.25,3.13]
[1752917131358,3.3,176.27,176.25,1.42844083]
[1752917131550,3.3,176.27,176.26,8.7999]
[1752917131751,1.42844083,176.29,176.26,3.13]
[1752917131752,3.3,176.28,176.26,3.13]
[1752917132157,3.3,176.28,176.27,5.6695]
[1752917132457,3.3,176.28,176.27,8.7995]
[1752917136663,2.2298668,176.31,176.3,5.6686]
[1752917137063,5.6674,176.34,176.29,3.2]
[1752917137064,2.2298668,176.33,176.29,3.2]
[1752917137366,3.17,176.32,176.31,5.6682]
[1752917137768,3.17,176.32,176.31,8.8682]
[1752917139265,3.17,176.32,176.31,5.6682]
[1752917141172,3.17,176.32,176.31,8.8682]
[1752917149977,3.17,176.32,176.31,5.6682]
[1752917150278,3.17,176.32,176.31,8.8682]
[1752917153672,3.17,176.34,176.33,5.6676]
[1752917153879,3.17,176.34,176.33,8.8676]
[1752917156485,5.6654,176.4,176.37,5.6663]
[1752917156684,1.4263586,176.38,176.37,5.6663]
[1752917156987,4.5963586,176.38,176.37,5.6663]
[1752917158082,3.17,176.38,176.37,8.8663]
[1752917160686,3.17,176.38,176.37,5.6663]
[1752917161588,3.17,176.38,176.37,8.8663]
[1752917161987,3.17,176.38,176.37,5.6663]
[1752917162587,3.17,176.38,176.37,8.8663]
[1752917163990,3.17,176.38,176.37,5.6663]
[1752917167988,3.17,176.38,176.36,0.03804239]
[1752917168293,11.11363284,176.37,176.36,0.03804239]
[1752917169091,5.44733284,176.37,176.36,0.03804239]
[1752917169396,3.68195761,176.36,176.34,3.15]
[1752917169594,3.22,176.36,176.35,5.6668]
[1752917171899,3.22,176.36,176.35,8.8168]
[1752917172595,0.03689502,176.37,176.36,5.6666]
[1752917172802,0.03689502,176.37,176.36,8.8166]
[1752917173792,3.25689502,176.37,176.36,8.8166]
[1752917176001,3.25689502,176.37,176.36,5.6666]
[1752917176397,5.48422786,176.37,176.36,5.6666]
[1752917180105,3.25689502,176.37,176.36,5.6666]
[1752917180506,3.25689502,176.37,176.35,5.6669]
[1752917180812,5.70329502,176.37,176.33,3.15]
[1752917181009,3.22,176.35,176.32,5.6679]
[1752917181308,3.22,176.33,176.31,3.15]
[1752917182311,3.22,176.33,176.32,5.6679]
[1752917184208,3.22,176.33,176.32,8.8179]
[1752917184710,3.22,176.35,176.34,8.8173]
[1752917185509,3.2607107,176.36,176.35,8.817]
[1752917185910,3.22,176.36,176.35,8.817]
[1752917192316,3.22,176.36,176.35,5.667]
[1752917194318,3.22,176.36,176.35,8.817]
[1752917199119,4.64596453,176.36,176.35,8.817]
[1752917200116,0.0396849,176.37,176.36,5.6667]
[1752917200421,0.0396849,176.37,176.36,8.7167]
[1752917202826,0.0396849,176.37,176.36,10.14266453]
[1752917203024,0.0396849,176.37,176.36,8.7167]
[1752917205726,3.03,176.39,176.38,5.666]
[1752917205920,3.03,176.39,176.38,8.716]
[1752917211831,3.03,176.41,176.39,3.05]
[1752917212133,3.03,176.4,176.39,3.05]
[1752917212527,2.22703176,176.45,176.38,0.04045563]
[1752917212727,3.03,176.44,176.39,3.05]
[1752917213126,3.03,176.44,176.42,5.6645]
[1752917213630,3.03,176.44,176.42,3.05]
[1752917214927,3.03,176.44,176.43,8.7144]
[1752917216225,3.03,176.44,176.43,5.6644]
[1752917221733,3.03,176.44,176.43,8.7144]
[1752917224029,3.03,176.44,176.43,5.6644]
[1752917224527,3.03,176.44,176.43,8.7144]
[1752917228437,3.03,176.44,176.43,5.6644]
[1752917228834,3.03,176.44,176.43,8.9044]
[1752917229834,3.03,176.44,176.43,5.6644]
[1752917230138,3.03,176.44,176.43,8.9044]
[1752917234341,3.03,176.44,176.43,5.6644]
[1752917236644,4.45459121,176.44,176.43,5.6644]
[1752917238045,4.45459121,176.44,176.43,8.9044]
[1752917239048,3.03,176.44,176.43,8.9044]
[1752917240851,4.46459121,176.45,176.44,8.9041]
[1752917249774,4.46459121,176.46,176.45,5.6638]
[1752917250069,3.04,176.46,176.45,8.9038]
[1752917250665,104.42459121,176.48,176.47,8.9031]
[1752917250666,1.42459121,176.48,176.47,8.9031]
[1752917250870,6.35614341,176.57,176.48,3.24]
[1752917251071,1.42459121,176.53,176.5,5.6621]
[1752917251271,1.42459121,176.53,176.5,3.24]
[1752917251272,3.04,176.52,176.5,3.24]
[1752917251473,3.04,176.52,176.51,0.03810571]
[1752917251673,4.46459121,176.52,176.51,0.03810571]
[1752917251872,4.46459121,176.52,176.51,5.69990571]
[1752917252973,4.46459121,176.52,176.51,0.03810571]
[1752917253571,10.12609121,176.52,176.51,0.03810571]
[1752917256481,0.46189429,176.51,176.49,5.6623]
[1752917256781,3.18,176.51,176.5,8.7621]
[1752917257179,1.42459121,176.51,176.5,5.6621]
[1752917257386,4.60459121,176.51,176.5,5.6621]
[1752917257681,4.60459121,176.51,176.5,8.7621]
[1752917257878,3.18,176.5,176.49,8.7624]
[1752917258184,4.60459121,176.5,176.49,8.7624]
[1752917258482,4.60459121,176.5,176.49,5.6624]
[1752917259181,4.60459121,176.5,176.48,5.6627]
[1752917259484,3.18,176.48,176.46,134.38418971]
[1752917259685,4.60459121,176.47,176.46,131.28418971]
[1752917260085,3.18,176.46,176.43,3.1]
[1752917260281,3.18,176.43,176.41,3.1]
[1752917260486,4.60459121,176.43,176.41,3.1]
[1752917260683,3.18,176.43,176.42,8.7647]
[1752917260988,3.21931591,176.44,176.42,3.1]
[1752917261290,0.03931591,176.44,176.42,3.1]
[1752917261791,3.21931591,176.44,176.42,3.1]
[1752917261989,3.21931591,176.44,176.43,8.7644]
[1752917262993,3.21931591,176.44,176.43,5.6644]
[1752917263892,4.64390712,176.44,176.43,8.7644]
[1752917267096,0.03931591,176.44,176.43,8.7644]
[1752917267297,4.64390712,176.44,176.43,8.7644]
[1752917267594,4.64390712,176.44,176.43,5.6644]
[1752917267793,1.46390712,176.44,176.42,8.7646]
[1752917267994,4.60459121,176.43,176.42,8.7646]
[1752917279198,0.03931591,176.44,176.42,8.7646]
[1752917279406,0.03931591,176.44,176.43,8.7644]
[1752917280402,1.46390712,176.44,176.43,8.7644]
[1752917280707,4.60459121,176.48,176.47,8.7631]
[1752917281495,1.42459121,176.48,176.47,8.7631]
[1752917282303,4.60459121,176.48,176.47,8.7631]
[1752917283305,3.18,176.48,176.47,8.7631]
[1752917283506,4.60459121,176.48,176.47,8.7631]
[1752917284002,1.42459121,176.48,176.47,8.7631]
[1752917284204,4.60459121,176.49,176.48,8.7628]
[1752917286610,3.18,176.49,176.48,8.7628]
[1752917287510,3.27,176.53,176.49,3.31]
[1752917287814,1.42459121,176.52,176.49,3.31]
[1752917288112,1.42459121,176.52,176.5,5.6619]
[1752917288316,1.42459121,176.52,176.5,8.9719]
[1752917288611,1.42459121,176.52,176.51,3.31]
[1752917288812,4.69459121,176.52,176.51,8.9718]
[1752917292314,3.27,176.51,176.5,8.9721]
[1752917292614,4.69459121,176.51,176.5,8.9721]
[1752917296919,3.27,176.51,176.5,8.9721]
[1752917297116,4.69459121,176.51,176.5,8.9721]
[1752917299119,3.27,176.51,176.5,8.9721]
[1752917301723,4.69459121,176.52,176.51,8.9718]
[1752917301919,103.56,176.56,176.51,3.31]
[1752917302115,1.42459121,176.55,176.51,3.31]
[1752917302414,4.69459121,176.55,176.51,3.31]
[1752917302619,3.27,176.54,176.51,3.31]
[1752917302821,4.69459121,176.54,176.51,3.31]
[1752917303219,3.27,176.54,176.53,5.6612]
[1752917303521,4.69459121,176.54,176.53,8.9712]
[1752917303820,3.27,176.54,176.53,8.9712]
[1752917304021,4.69459121,176.54,176.53,8.9712]
[1752917305221,3.27,176.54,176.53,8.9712]
[1752917305422,4.69459121,176.54,176.53,8.9712]
[1752917308922,3.27,176.54,176.53,8.9712]
[1752917309323,4.69459121,176.54,176.53,8.9712]
[1752917316431,3.08,176.57,176.53,3.31]
[1752917316632,4.50459121,176.57,176.53,1.42459121]
[1752917316930,4.50459121,176.57,176.56,5.6602]
[1752917317130,103.84,176.63,176.56,3.35]
[1752917317430,4.50459121,176.57,176.56,3.35]
[1752917317726,4.50459121,176.57,176.56,9.0102]
[1752917317925,4.50459121,176.57,176.56,3.35]
[1752917319029,4.50459121,176.57,176.56,9.0102]
[1752917319532,3.08,176.56,176.55,0.03637447]
[1752917319733,4.50459121,176.56,176.55,0.03637447]
[1752917319930,4.50459121,176.56,176.51,5.6616]
[1752917320132,3.08,176.51,176.46,131.03342106]
[1752917320331,3.08,176.49,176.46,132.45801227]
[1752917320529,4.50459121,176.51,176.5,5.6622]
[1752917320832,4.50459121,176.51,176.5,9.0122]
[1752917321227,4.50459121,176.51,176.5,5.6622]
[1752917321433,3.08,176.5,176.48,3.35]
[1752917321633,4.50459121,176.49,176.48,3.35]
[1752917321933,3.08,176.57,176.48,3.35]
[1752917322227,1.42459121,176.51,176.5,5.6622]
[1752917322432,4.50459121,176.51,176.5,9.0122]
[1752917324134,3.08,176.51,176.5,9.0122]
[1752917324334,4.50459121,176.51,176.5,9.0122]
[1752917327435,3.08,176.51,176.5,9.0122]
[1752917327735,4.50459121,176.51,176.5,9.0122]
[1752917329035,4.50459121,176.51,176.5,5.6622]
[1752917329236,3.08,176.5,176.47,3.35]
[1752917329436,3.08,176.48,176.47,3.35]
[1752917329637,1.42459121,176.49,176.47,3.35]
[1752917329937,4.50459121,176.49,176.48,9.0128]
[1752917331839,3.08,176.49,176.48,9.0128]
[1752917332039,4.50459121,176.49,176.48,9.0128]
[1752917332540,3.08,176.49,176.48,9.0128]
[1752917332741,4.50459121,176.49,176.48,9.0128]
[1752917334541,1.42459121,176.49,176.48,9.0128]
[1752917335642,0.03578265,176.5,176.49,5.6625]
[1752917335837,4.54037386,176.5,176.49,9.0125]
[1752917339647,4.54037386,176.5,176.49,5.6625]
[1752917340148,4.54037386,176.5,176.49,9.0125]
[1752917341543,4.54037386,176.5,176.49,5.6625]
[1752917342047,3.11578265,176.5,176.49,9.0125]
[1752917342245,4.54037386,176.5,176.49,9.0125]
[1752917344848,3.11578265,176.5,176.49,9.0125]
[1752917345048,4.54037386,176.5,176.49,9.0125]
[1752917348851,4.54037386,176.5,176.49,3.35]
[1752917353155,4.54037386,176.5,176.48,5.6627]
[1752917353356,3.31,176.49,176.48,9.0027]
[1752917356558,0.03578265,176.5,176.49,9.0025]
[1752917356855,4.77037386,176.5,176.49,3.34]
[1752917357456,10.43257386,176.5,176.47,3.34]
[1752917357652,3.31,176.49,176.47,3.34]
[1752917358455,3.31,176.49,176.47,9.0029]
[1752917358658,7.12257386,176.5,176.47,3.34]
[1752917358958,3.31,176.48,176.47,3.34]
[1752917359259,4.73459121,176.48,176.47,3.34]
[1752917359759,4.73459121,176.48,176.47,9.0031]
[1752917360160,4.73459121,176.48,176.47,5.6631]
[1752917360360,4.73459121,176.48,176.47,9.0031]
[1752917360660,4.73459121,176.48,176.47,3.34]
[1752917361761,4.73459121,176.48,176.46,131.03342106]
[1752917362063,3.31,176.47,176.46,131.03342106]
[1752917362363,3.31,176.47,176.46,134.37342106]
[1752917365364,3.31,176.47,176.46,3.34]
[1752917365962,3.31,176.47,176.45,103.82]
[1752917366364,3.31,176.47,176.45,107.16]
[1752917368165,1.42459121,176.46,176.45,107.16]
[1752917368364,4.73459121,176.46,176.45,107.16]
[1752917370260,3.31,176.45,176.43,106.94]
[1752917370456,4.73459121,176.44,176.43,3.34]
[1752917372363,3.31,176.44,176.43,3.34]
[1752917374169,3.31,176.44,176.43,9.0044]
[1752917374671,3.31,176.44,176.43,3.34]
[1752917374870,4.73459121,176.44,176.43,3.34]
[1752917375564,3.38645567,176.45,176.43,5.6644]
[1752917375767,1.46104688,176.45,176.44,3.09]
[1752917375969,0.03645567,176.45,176.44,3.09]
[1752917376368,0.03645567,176.45,176.44,8.7541]
[1752917377770,0.03645567,176.45,176.44,3.09]
[1752917378172,3.38645567,176.45,176.44,3.09]
[1752917380376,3.38645567,176.45,176.44,8.7541]
[1752917381071,3.38645567,176.45,176.44,3.09]
[1752917381267,4.81104688,176.45,176.44,3.09]
[1752917381470,3.35,176.44,176.43,3.09]
[1752917381671,4.77459121,176.44,176.43,8.7544]
[1752917382678,3.35,176.44,176.43,8.7544]
[1752917383272,3.35,176.44,176.43,3.09]
[1752917383475,3.35,176.44,176.42,103.62]
[1752917383674,3.35,176.42,176.4,5.2981]
[1752917383872,1.42459121,176.41,176.4,111.8681]
[1752917384174,4.77459121,176.41,176.4,111.8681]
[1752917384672,4.77459121,176.41,176.4,117.5335]
[1752917388377,4.77459121,176.41,176.4,5.2981]
[1752917389880,10.43959121,176.41,176.4,5.2981]
[1752917394191,4.77459121,176.41,176.4,5.2981]
[1752917394590,4.77459121,176.41,176.4,8.3881]
[1752917399297,3.35,176.42,176.41,3.09]
[1752917399496,4.77459121,176.42,176.41,3.09]
[1752917399997,4.77459121,176.42,176.41,8.755]
[1752917400397,4.77459121,176.42,176.41,3.09]
[1752917400594,1.42459121,176.42,176.41,3.09]
[1752917401091,1.42459121,176.42,176.41,8.755]
[1752917401287,4.77459121,176.42,176.41,8.755]
[1752917402696,4.77459121,176.42,176.41,3.09]
[1752917403198,4.77459121,176.42,176.4,14.0533]
[1752917403393,3.35,176.41,176.4,14.0533]
[1752917404396,3.35,176.41,176.4,5.2981]
[1752917404796,5.6662,176.38,176.36,106.47]
[1752917405002,3.35,176.37,176.36,106.47]
[1752917405201,3.35,176.37,176.36,3.09]
[1752917405696,9.0163,176.37,176.36,3.09]
[1752917405902,3.33,176.36,176.35,3.06]
[1752917406202,3.33,176.35,176.33,103.42]
[1752917406500,4.75459121,176.34,176.33,112.1474]
[1752917407700,3.33,176.34,176.33,112.1474]
[1752917407999,4.75459121,176.34,176.33,112.1474]
[1752917409606,4.75459121,176.34,176.33,106.48]
[1752917410601,4.75459121,176.34,176.33,112.1476]
[1752917410805,4.75459121,176.34,176.33,5.6676]
[1752917411005,4.75459121,176.34,176.33,8.7276]
[1752917411205,4.75459121,176.34,176.32,5.6678]
[1752917411402,3.33,176.33,176.32,8.7278]
[1752917414010,3.33,176.33,176.32,14.27370434]
[1752917414505,4.75459121,176.33,176.32,5.54590434]
[1752917414708,4.75459121,176.33,176.29,106.44]
[1752917414906,8.9981,176.32,176.3,5.54873601]
[1752917415110,3.33,176.3,176.28,3.06]
[1752917415302,3.33,176.28,176.27,106.44]
[1752917415508,3.33,176.28,176.27,111.98636318]
[1752917415707,3.33,176.28,176.27,5.54636318]
[1752917416007,3.33,176.28,176.27,8.60636318]
[1752917416309,3.33,176.28,176.27,14.27586318]
[1752917416610,3.33,176.28,176.27,11.21586318]
[1752917417014,3.33,176.28,176.27,5.54636318]
[1752917418514,3.33,176.28,176.25,8.7299]
[1752917418816,3.33,176.28,176.26,5.6698]
[1752917419018,3.33,176.28,176.26,3.06]
[1752917419314,3.33,176.27,176.24,103.42]
[1752917419509,3.33,176.28,176.27,5.6694]
[1752917419708,3.33,176.28,176.27,8.7294]
[1752917420204,2.26701225,176.29,176.27,3.06]
[1752917420404,3.33,176.31,176.28,3.06]
[1752917420611,3.33,176.32,176.28,3.06]
[1752917421016,3.33,176.32,176.31,5.6683]
[1752917421315,3.33,176.32,176.31,8.7283]
[1752917421817,3.33,176.34,176.33,3.06]
[1752917422116,3.33,176.34,176.31,3.06]
[1752917422313,3.33,176.34,176.32,3.06]
[1752917422512,3.33,176.34,176.32,5.6679]
[1752917422716,3.33,176.34,176.3,3.10289977]
[1752917423307,2.23019961,176.33,176.3,0.04289977]
[1752917423513,5.56019961,176.31,176.3,0.04289977]
[1752917424417,3.33,176.31,176.3,8.77149977]
[1752917424720,2.23019961,176.34,176.31,3.06]
[1752917424921,5.56019961,176.34,176.33,3.06]
[1752917425616,5.56019961,176.34,176.32,5.6679]
[1752917425817,3.33,176.33,176.31,8.7281]
[1752917426029,3.33,176.33,176.3,0.04289977]
[1752917426325,3.33,176.33,176.31,5.52786212]
[1752917426525,3.33,176.33,176.31,5.6682]
[1752917426919,2.23019961,176.32,176.3,5.71139977]
[1752917427117,3.33,176.31,176.3,0.04289977]
[1752917427523,3.33,176.31,176.26,131.08836102]
[1752917427720,3.33,176.27,176.26,131.08836102]
[1752917427920,3.33,176.27,176.26,136.62089053]
[1752917428316,3.33,176.27,176.26,139.68089053]
[1752917428920,3.33,176.27,176.26,145.35069053]
[1752917429827,3.33,176.27,176.26,139.68089053]
[1752917430629,3.33,176.27,176.26,145.35079053]
[1752917433326,3.33,176.27,176.26,139.68089053]
[1752917434427,3.33,176.27,176.26,136.62089053]
[1752917435027,3.33,176.27,176.26,145.33079053]
[1752917438625,0.04092457,176.28,176.27,5.6695]
[1752917438825,5.6684,176.31,176.28,3.04]
[1752917438826,3.24,176.31,176.28,3.04]
[1752917439230,3.24,176.31,176.3,8.7086]
[1752917439932,3.24,176.31,176.3,5.6686]
[1752917440734,3.24,176.33,176.32,8.7078]
[1752917441034,16.9929,176.46,176.33,3.04]
[1752917441035,3.24,176.34,176.33,3.04]
[1752917441230,3.24,176.37,176.34,3.04]
[1752917441433,3.24,176.37,176.35,8.7068]
[1752917441934,3.24,176.37,176.36,5.6667]
[1752917442142,3.24,176.37,176.36,8.7067]
[1752917443544,3.24,176.39,176.36,3.04]
[1752917443745,3.24,176.38,176.36,3.04]
[1752917444742,3.24,176.38,176.37,5.6663]
[1752917444949,3.24,176.38,176.37,8.7063]
[1752917445947,5.47019961,176.4,176.39,8.7057]
[1752917446244,3.24,176.4,176.39,8.7057]
[1752917447148,3.24,176.4,176.39,3.04]
[1752917447850,3.24,176.4,176.38,5.6659]
[1752917448050,3.24,176.4,176.38,8.7059]
[1752917449147,5.6651,176.41,176.39,5.6656]
[1752917449648,3.24,176.41,176.4,3.04]
[1752917451046,3.24,176.41,176.4,8.7054]
[1752917452250,7.89429961,176.44,176.41,5.6647]
[1752917452450,3.24,176.43,176.42,3.04]
[1752917452843,3.24,176.43,176.42,8.7047]
[1752917453144,3.24,176.45,176.42,3.04]
[1752917453542,3.24,176.45,176.44,3.04]
[1752917454051,3.24,176.44,176.43,3.04]
[1752917454348,3.24,176.44,176.42,5.70301872]
[1752917454649,3.24,176.43,176.42,8.74311872]
[1752917458458,2.23019961,176.46,176.44,5.6641]
[1752917458658,2.23019961,176.46,176.44,8.7041]
[1752917459061,3.24,176.47,176.45,3.04]
[1752917459261,3.24,176.46,176.44,8.7041]
[1752917461555,3.24,176.47,176.43,3.04]
[1752917462061,3.24,176.47,176.45,5.6637]
[1752917462261,3.24,176.47,176.45,8.7037]
[1752917464860,3.24,176.47,176.46,5.6634]
[1752917465164,3.24,176.47,176.46,3.04]
[1752917465557,3.24,176.47,176.45,8.7936]
[1752917466466,3.24,176.47,176.46,8.7934]
[1752917467559,3.24,176.47,176.46,3.13]
[1752917467766,3.24,176.47,176.44,3.13]
[1752917467966,3.24,176.47,176.43,3.13]
[1752917468162,3.24,176.47,176.44,5.6641]
[1752917468865,3.24,176.47,176.44,8.7941]
[1752917469257,3.24,176.47,176.45,3.13]
[1752917469460,3.23,176.48,176.42,0.03841872]
[1752917469968,3.23,176.48,176.43,3.13]
[1752917470267,3.23,176.48,176.43,3.16791001]
[1752917470668,3.23,176.47,176.46,5.6632]
[1752917470865,3.23,176.47,176.46,8.7932]
[1752917471064,3.23,176.47,176.46,3.13]
[1752917471261,3.23,176.47,176.45,5.6636]
[1752917471665,3.23,176.46,176.43,0.03791001]
[1752917472159,3.23,176.44,176.43,3.16791001]
[1752917472868,3.23,176.44,176.43,8.83201001]
[1752917476771,3.23,176.46,176.43,3.16791001]
[1752917477469,2.23019961,176.48,176.46,5.6633]
[1752917477970,3.23,176.47,176.46,5.6633]
[1752917484072,3.23,176.47,176.46,8.7933]
[1752917484274,3.23,176.48,176.46,3.13]
[1752917485977,3.23,176.48,176.47,8.7931]
[1752917488076,3.23,176.48,176.47,5.6631]
[1752917490978,3.23,176.48,176.45,0.03915059]
[1752917491378,5.46019961,176.48,176.45,0.03915059]
[1752917491579,3.23,176.47,176.45,0.03915059]
[1752917492380,5.46019961,176.46,176.45,0.03915059]
[1752917499378,5.46019961,176.46,176.45,5.70295059]
[1752917499583,5.46019961,176.46,176.45,9.04295059]
[1752917499783,3.23,176.46,176.45,9.04295059]
[1752917499985,3.26,176.49,176.46,3.34]
[1752917500487,3.26,176.48,176.46,3.34]
[1752917500684,3.26,176.51,176.46,3.34]
[1752917501385,3.26,176.51,176.49,3.34]
[1752917501584,3.26,176.51,176.5,3.34]
[1752917501779,3.26,176.51,176.5,9.0022]
[1752917502582,3.26,176.51,176.49,0.0383587]
[1752917502583,3.26,176.51,176.49,9.0407587]
[1752917503489,6.35614341,176.54,176.49,0.0383587]
[1752917503787,5.49019961,176.53,176.51,3.34]
[1752917503995,3.26,176.52,176.51,3.34]
[1752917504288,3.26,176.52,176.5,3.34]
[1752917504488,2.23019961,176.53,176.5,9.0019]
[1752917504889,3.26,176.52,176.5,9.0019]
[1752917505191,3.26,176.52,176.51,9.0018]
[1752917505791,2.23019961,176.54,176.52,5.6615]
[1752917505992,105.95019961,176.55,176.52,9.0015]
[1752917506291,105.95019961,176.55,176.49,0.0383587]
[1752917506494,3.26,176.54,176.53,3.34]
[1752917506988,3.26,176.54,176.52,5.6612]
[1752917507195,3.26,176.54,176.51,5.6617]
[1752917507894,3.26,176.52,176.49,0.0383587]
[1752917508097,3.26,176.5,176.49,0.0383587]
[1752917508494,3.26,176.5,176.49,3.3783587]
[1752917509089,3.26,176.5,176.49,5.7005587]
[1752917509289,3.26,176.5,176.49,0.0383587]
[1752917509600,3.26,176.5,176.49,5.7008587]
[1752917511196,3.26,176.5,176.49,9.0408587]
[1752917513502,3.26,176.5,176.49,5.7008587]
[1752917518795,3.26,176.5,176.49,0.0383587]
[1752917519403,5.6625,176.49,176.46,5.6633]
[1752917519605,3.26,176.48,176.46,5.6633]
[1752917520301,3.26,176.48,176.47,5.6631]
[1752917520909,0.03935199,176.49,176.48,5.6628]
[1752917521107,0.03935199,176.49,176.48,9.0028]
[1752917521697,3.29935199,176.49,176.48,9.0028]
[1752917522710,0.03935199,176.49,176.48,9.0028]
[1752917523503,3.29935199,176.49,176.48,9.0028]
[1752917524207,0.03935199,176.49,176.48,9.0028]
[1752917526811,3.25,176.53,176.52,9.0015]
[1752917532912,3.25,176.53,176.52,3.34]
[1752917534114,3.25,176.53,176.51,9.04018532]
[1752917535418,3.25,176.53,176.51,3.37848532]
[1752917536916,3.25,176.52,176.51,0.03848532]
[1752917537713,3.25,176.53,176.51,5.69998532]
[1752917537917,3.25,176.53,176.52,3.34]
[1752917539020,3.25,176.53,176.52,9.0015]
[1752917539220,3.25,176.53,176.52,5.6615]
[1752917539519,3.25,176.53,176.52,9.0015]
[1752917541421,3.25,176.53,176.52,5.6615]
[1752917541921,3.25,176.53,176.52,9.0015]
[1752917544219,103.72,176.55,176.54,5.6609]
[1752917544426,103.72,176.55,176.54,9.0009]
[1752917544626,2.23019961,176.56,176.54,9.0009]
[1752917544814,3.25,176.55,176.54,9.0009]
[1752917545822,3.25,176.55,176.54,3.34]
[1752917546422,3.25,176.55,176.53,9.0011]
[1752917548925,1.42305017,176.54,176.53,9.0011]
[1752917549125,4.67305017,176.54,176.53,9.0011]
[1752917552030,4.67305017,176.54,176.53,3.34]
[1752917552830,4.67305017,176.54,176.51,0.03848532]
[1752917553031,4.67305017,176.52,176.51,0.03848532]
[1752917554528,4.67305017,176.52,176.51,3.37848532]
[1752917555126,4.67305017,176.52,176.51,0.03848532]
[1752917555430,4.67305017,176.52,176.51,3.15848532]
[1752917556033,4.67305017,176.52,176.51,0.03848532]
[1752917557827,4.67305017,176.52,176.51,3.15848532]
[1752917559435,3.28,176.54,176.52,3.12]
[1752917559734,4.70305017,176.53,176.52,3.12]
[1752917560836,4.70305017,176.53,176.52,8.7815]
[1752917561835,4.70305017,176.53,176.52,3.12]
[1752917562038,3.28,176.52,176.51,8.82018532]
[1752917562330,4.70305017,176.52,176.51,8.82018532]
[1752917564034,4.70305017,176.52,176.51,5.70018532]
[1752917569135,4.70305017,176.52,176.51,0.03848532]
[1752917570234,10.36455017,176.52,176.51,0.03848532]
[1752917570435,3.28,176.51,176.46,3.12]
[1752917570632,4.70305017,176.47,176.46,3.12]
[1752917571336,4.70305017,176.47,176.46,8.7834]
[1752917576346,4.70305017,176.47,176.46,5.6634]
[1752917576841,1.42305017,176.47,176.45,5.6637]
[1752917577041,1.42305017,176.47,176.44,141.43865197]
[1752917577042,3.28,176.46,176.44,141.43865197]